{"text_format":"1","workbook":"xlsx","n_sheets":2,"sheets":["نموذج ادخال البيانات","تقرير الطالب"],"not_rendered":{"charts":0,"images":3,"macros":1,"external_links":0,"defined_names":2,"comments":0,"pivot_tables":0},"unopened":[],"bounds":{"document_bytes":16777216,"sheet_cells":100000,"rows_first":2000,"rows_last":500,"rows_between":2000,"halvings":0,"cell_chars":16384,"cell_head_chars":4096},"cells_cut":0,"cells_raw":0,"read":"whole","date_system":"1900"}

{"sheet":"نموذج ادخال البيانات","index":0,"n_rows":27,"n_cols":10,"rows_kept":27,"cut":false,"hidden":false,"merged":[[2,6,3,9],[0,0,5,1],[0,2,1,9],[2,2,3,5],[4,2,5,5]]}
[null,null,"نموذج ادخال بيانات التقرير الشهري للطالب"]
[]
[null,null,"منتدى السمو الاجتماعي",null,null,null,"تاريخ التقرير"]
[]
[null,null,"حلقات الهدى والنور",null,null,null,"اليوم","الشهر","السنة"]
[]
["م","اسم الطالب","المرحلة الدراسية","المستوى","عدد أجزاء الحفظ","مقدار الحفظ بالصفحة","مقدار المراجعة بالصفحة","عدد أيام الغياب ","تقدير الحفظ","نتيجة الاختبار"]
[1,"محمد عبدالله","ثانوي","السادس",26,2,50,5,"جيدجداً",95]
[2,"محمد خالد","متوسط","الرابع",52,15,21,1,"ممتاز",100]
[3,"خالد زمزمي","ابتدائي","الثاني",25,12,35,2,"جيد",90]
[4,"محمد درويش","تمهيدي","الأول",14,24,12,0,"جيد",85]
[5,"محمد"]
[6,"أحمد"]
[7,"ياسر"]
[8,"عبدالله"]
[9,"محمد"]
[10,"عسية"]
[11,"تب"]
[12,"مختار"]
[13,"يس"]
[14,"بي"]
[15,"للااا"]
[16,"بلالب"]
[17,"لافلا"]
[18,"لبابل"]
[19,"بلالبا"]
[20,"لبابل"]

{"sheet":"تقرير الطالب","index":1,"n_rows":21,"n_cols":13,"rows_kept":21,"cut":false,"hidden":false,"merged":[[0,0,10,4],[11,1,13,1],[15,1,20,1]]}
[]
[]
[]
[null,null,null,null,null,null,null,null,null,null,null,null,{"$f":"IFERROR(INDEX(الجدول1[اسم الطالب],MATCH(0,INDEX(COUNTIF($M$3:M3,الجدول1[اسم الطالب]),),0)),\"\")","v":"محمد عبدالله"}]
[null,null,null,null,null,null,null,null,null,null,null,null,{"$f":"IFERROR(INDEX(الجدول1[اسم الطالب],MATCH(0,INDEX(COUNTIF($M$3:M4,الجدول1[اسم الطالب]),),0)),\"\")","v":"محمد خالد"}]
[null,null,null,null,null,null,null,null,null,null,null,null,{"$f":"IFERROR(INDEX(الجدول1[اسم الطالب],MATCH(0,INDEX(COUNTIF($M$3:M5,الجدول1[اسم الطالب]),),0)),\"\")","v":"خالد زمزمي"}]
[null,null,null,null,null,null,null,null,null,null,null,null,{"$f":"IFERROR(INDEX(الجدول1[اسم الطالب],MATCH(0,INDEX(COUNTIF($M$3:M6,الجدول1[اسم الطالب]),),0)),\"\")","v":"محمد درويش"}]
[null,null,null,null,null,null,null,null,null,null,null,null,{"$f":"IFERROR(INDEX(الجدول1[اسم الطالب],MATCH(0,INDEX(COUNTIF($M$3:M7,الجدول1[اسم الطالب]),),0)),\"\")","v":"محمد"}]
[null,null,null,null,null,null,null,null,null,null,null,null,{"$f":"IFERROR(INDEX(الجدول1[اسم الطالب],MATCH(0,INDEX(COUNTIF($M$3:M8,الجدول1[اسم الطالب]),),0)),\"\")","v":"أحمد"}]
[null,null,null,null,null,null,null,null,null,null,null,null,{"$f":"IFERROR(INDEX(الجدول1[اسم الطالب],MATCH(0,INDEX(COUNTIF($M$3:M9,الجدول1[اسم الطالب]),),0)),\"\")","v":"ياسر"}]
[null,null,null,null,null,null,null,null,null,null,null,null,{"$f":"IFERROR(INDEX(الجدول1[اسم الطالب],MATCH(0,INDEX(COUNTIF($M$3:M10,الجدول1[اسم الطالب]),),0)),\"\")","v":"عبدالله"}]
[null,"المعلومات الشخصية","اسم الطالب","محمد عبدالله",null,null,null,null,null,null,null,null,{"$f":"IFERROR(INDEX(الجدول1[اسم الطالب],MATCH(0,INDEX(COUNTIF($M$3:M11,الجدول1[اسم الطالب]),),0)),\"\")","v":"عسية"}]
[null,null,"المستوى",{"$f":"INDEX('نموذج ادخال البيانات'!$B$7:$J$27,MATCH(D$12,'نموذج ادخال البيانات'!$B$7:$B$27,0),MATCH($C13,'نموذج ادخال البيانات'!$B$7:$J$7,0))","v":"السادس"},null,null,null,null,null,null,null,null,{"$f":"IFERROR(INDEX(الجدول1[اسم الطالب],MATCH(0,INDEX(COUNTIF($M$3:M12,الجدول1[اسم الطالب]),),0)),\"\")","v":"تب"}]
[null,null,"المرحلة الدراسية",{"$f":"INDEX('نموذج ادخال البيانات'!$B$7:$J$27,MATCH(D$12,'نموذج ادخال البيانات'!$B$7:$B$27,0),MATCH($C14,'نموذج ادخال البيانات'!$B$7:$J$7,0))","v":"ثانوي"},null,null,null,null,null,null,null,null,{"$f":"IFERROR(INDEX(الجدول1[اسم الطالب],MATCH(0,INDEX(COUNTIF($M$3:M13,الجدول1[اسم الطالب]),),0)),\"\")","v":"مختار"}]
[null,null,null,null,null,null,null,null,null,null,null,null,{"$f":"IFERROR(INDEX(الجدول1[اسم الطالب],MATCH(0,INDEX(COUNTIF($M$3:M14,الجدول1[اسم الطالب]),),0)),\"\")","v":"يس"}]
[null,"أداء الطالب في الحلقة","عدد أجزاء الحفظ",{"$f":"INDEX('نموذج ادخال البيانات'!$B$7:$J$27,MATCH(D$12,'نموذج ادخال البيانات'!$B$7:$B$27,0),MATCH($C16,'نموذج ادخال البيانات'!$B$7:$J$7,0))","v":26},null,null,null,null,null,null,null,null,{"$f":"IFERROR(INDEX(الجدول1[اسم الطالب],MATCH(0,INDEX(COUNTIF($M$3:M15,الجدول1[اسم الطالب]),),0)),\"\")","v":"بي"}]
[null,null,"مقدار الحفظ بالصفحة",{"$f":"INDEX('نموذج ادخال البيانات'!$B$7:$J$27,MATCH(D$12,'نموذج ادخال البيانات'!$B$7:$B$27,0),MATCH($C17,'نموذج ادخال البيانات'!$B$7:$J$7,0))","v":2},null,null,null,null,null,null,null,null,{"$f":"IFERROR(INDEX(الجدول1[اسم الطالب],MATCH(0,INDEX(COUNTIF($M$3:M16,الجدول1[اسم الطالب]),),0)),\"\")","v":"للااا"}]
[null,null,"مقدار المراجعة بالصفحة",{"$f":"INDEX('نموذج ادخال البيانات'!$B$7:$J$27,MATCH(D$12,'نموذج ادخال البيانات'!$B$7:$B$27,0),MATCH($C18,'نموذج ادخال البيانات'!$B$7:$J$7,0))","v":50},null,null,null,null,null,null,null,null,{"$f":"IFERROR(INDEX(الجدول1[اسم الطالب],MATCH(0,INDEX(COUNTIF($M$3:M17,الجدول1[اسم الطالب]),),0)),\"\")","v":"بلالب"}]
[null,null,"عدد أيام الغياب ",{"$f":"INDEX('نموذج ادخال البيانات'!$B$7:$J$27,MATCH(D$12,'نموذج ادخال البيانات'!$B$7:$B$27,0),MATCH($C19,'نموذج ادخال البيانات'!$B$7:$J$7,0))","v":5},null,null,null,null,null,null,null,null,{"$f":"IFERROR(INDEX(الجدول1[اسم الطالب],MATCH(0,INDEX(COUNTIF($M$3:M18,الجدول1[اسم الطالب]),),0)),\"\")","v":"لافلا"}]
[null,null,"تقدير الحفظ",{"$f":"INDEX('نموذج ادخال البيانات'!$B$7:$J$27,MATCH(D$12,'نموذج ادخال البيانات'!$B$7:$B$27,0),MATCH($C20,'نموذج ادخال البيانات'!$B$7:$J$7,0))","v":"جيدجداً"},null,null,null,null,null,null,null,null,{"$f":"IFERROR(INDEX(الجدول1[اسم الطالب],MATCH(0,INDEX(COUNTIF($M$3:M19,الجدول1[اسم الطالب]),),0)),\"\")","v":"لبابل"}]
[null,null,"نتيجة الاختبار",{"$f":"INDEX('نموذج ادخال البيانات'!$B$7:$J$27,MATCH(D$12,'نموذج ادخال البيانات'!$B$7:$B$27,0),MATCH($C21,'نموذج ادخال البيانات'!$B$7:$J$7,0))","v":95},null,null,null,null,null,null,null,null,{"$f":"IFERROR(INDEX(الجدول1[اسم الطالب],MATCH(0,INDEX(COUNTIF($M$3:M20,الجدول1[اسم الطالب]),),0)),\"\")","v":"بلالبا"}]